bitfinex-derivatives/quotes_SOLF0:USTF0_20260210
["timestamp","ask_amount","ask_price","bid_price","bid_amount"]
[1770727655254,11.06732537,83.909,83.828,9.27542668]
[1770727655562,7.99147752,83.92,83.828,9.27542668]
[1770727655962,7.99147752,83.92,83.82,7.99147752]
[1770727655963,10.7361,83.906,83.848,9.27542668]
[1770727656461,7.99147752,83.92,83.821,9.27542668]
[1770727657261,9.45086643,83.919,83.821,9.27542668]
[1770727657864,9.45086643,83.899,83.841,10.7443]
[1770727658467,9.45086643,83.899,83.848,10.7435]
[1770727658962,9.45086643,83.897,83.848,10.7435]
[1770727659164,9.45086643,83.897,83.848,20.01892668]
[1770727659363,9.45086643,83.897,83.85,10.7432]
[1770727659572,9.45086643,83.897,83.851,9.27542668]
[1770727659963,10.7362,83.906,83.851,9.27542668]
[1770727660460,9.45086643,83.911,83.854,9.27542668]
[1770727660865,120.0,83.927,83.871,9.27542668]
[1770727660866,9.45086643,83.925,83.871,9.27542668]
[1770727661466,9.45086643,83.925,83.878,20.01502668]
[1770727661969,9.45086643,83.925,83.879,9.27542668]
[1770727662560,9.45086643,83.925,83.882,9.27542668]
[1770727662765,10.7328,83.933,83.882,9.27542668]
[1770727662966,9.45086643,83.939,83.882,9.27542668]
[1770727663869,9.45086643,83.937,83.852,9.27542668]
[1770727664771,9.45086643,83.919,83.866,10.7412]
[1770727665166,9.45086643,83.919,83.866,20.01662668]
[1770727665766,9.45086643,83.919,83.87,10.7407]
[1770727666074,9.45086643,83.919,83.87,20.01612668]
[1770727666266,9.45086643,83.919,83.873,9.27542668]
[1770727666672,10.7334,83.928,83.873,9.27542668]
[1770727667063,9.45086643,83.934,83.887,20.01392668]
[1770727667268,9.45086643,83.934,83.888,9.27542668]
[1770727667674,10.7327,83.933,83.888,9.27542668]
[1770727667869,9.45086643,83.934,83.888,9.27542668]
[1770727668265,46.86732537,83.994,83.888,9.27542668]
[1770727668266,9.45086643,83.959,83.888,9.27542668]
[1770727668469,9.45086643,83.939,83.841,9.27542668]
[1770727668676,9.45086643,83.939,83.843,9.27542668]
[1770727669277,9.45086643,83.939,83.842,95.16]
[1770727669278,9.45086643,83.925,83.871,9.27542668]
[1770727670486,9.45086643,83.925,83.884,10.7388]
[1770727672584,9.14424804,83.922,83.873,10.7402]
[1770727673085,9.14424804,83.922,83.879,10.7395]
[1770727673284,9.14424804,83.922,83.871,9.27542668]
[1770727674379,9.14424804,83.945,83.884,9.46337059]
[1770727674975,9.14424804,83.945,83.895,10.7375]
[1770727675182,9.14424804,83.945,83.884,9.46337059]
[1770727675183,95.16,83.965,83.884,9.46337059]
[1770727675375,9.14424804,83.958,83.884,9.46337059]
[1770727675780,9.14424804,83.958,83.912,10.7352]
[1770727676781,9.14424804,83.949,83.905,10.7362]
[1770727676979,9.14424804,83.949,83.881,9.46337059]
[1770727677783,2.95824832,83.945,83.895,10.7375]
[1770727678890,2.95824832,83.945,83.901,10.7367]
[1770727680583,2.95824832,83.945,83.906,10.736]
[1770727681082,2.99420743,83.959,83.902,9.46337059]
[1770727681282,2.99420743,83.959,83.873,21.4805]
[1770727681283,2.99420743,83.959,83.915,9.46337059]
[1770727681682,3.00212729,83.949,83.887,9.46337059]
[1770727683983,3.00212729,83.949,83.853,21.4857]
[1770727683984,3.0702701,83.932,83.89,10.7381]
[1770727685388,2.50262873,83.93,83.89,10.7381]
[1770727694187,2.76608888,83.927,83.834,9.46337059]
[1770727694897,2.76608888,83.927,83.873,10.7402]
[1770727696686,10.7351,83.914,83.873,10.7402]
[1770727697489,2.76608888,83.927,83.874,9.46337059]
[1770727697689,2.76608888,83.927,83.881,9.46337059]
[1770727698093,2.81918118,83.949,83.881,9.46337059]
[1770727698494,119.48,83.952,83.841,103.3]
[1770727698495,2.82567377,83.929,83.851,9.46337059]
[1770727699803,10.7345,83.919,83.873,9.4723512]
[1770727700703,10.7345,83.919,83.876,10.7399]
[1770727701008,3.38059721,83.916,83.873,9.4723512]
[1770727702807,10.7354,83.912,83.873,9.4723512]
[1770727704302,3.38059721,83.916,83.873,9.4723512]
[1770727704706,10.7358,83.909,83.873,9.4723512]
[1770727705503,119.52,83.929,83.874,9.35328464]
[1770727705709,3.42461116,83.939,83.874,9.35328464]
[1770727706202,10.7327,83.933,83.889,9.35328464]
[1770727706608,10.7335,83.927,83.889,9.35328464]
[1770727706910,3.42461116,83.939,83.889,9.35328464]
[1770727707713,10.7326,83.934,83.891,9.35328464]
[1770727708213,10.7334,83.928,83.891,9.35328464]
[1770727708910,3.7982742,83.922,83.878,9.35328464]
[1770727709512,3.7982742,83.922,83.863,9.35328464]
[1770727710602,10.7358,83.909,83.863,9.35328464]
[1770727712611,10.7358,83.909,83.822,22.24314143]
[1770727712612,10.7348,83.917,83.865,9.35328464]
[1770727712811,95.14,83.924,83.865,9.35328464]
[1770727713311,10.7338,83.924,83.871,10.7405]
[1770727713507,11.75278701,83.93,83.872,9.35328464]
[1770727714611,3.78555515,83.929,83.872,9.35328464]
[1770727714812,10.7347,83.918,83.876,9.35328464]
[1770727715411,3.96820981,83.908,83.862,9.35328464]
[1770727716913,3.96820981,83.908,83.848,9.35328464]
[1770727717715,10.7385,83.888,83.848,9.35328464]
[1770727720909,3.71461142,83.895,83.848,9.35328464]
[1770727722720,10.7378,83.893,83.848,9.35328464]
[1770727726019,10.7394,83.881,83.848,9.35328464]
[1770727726723,10.7385,83.888,83.848,9.35328464]
[1770727730024,3.72486443,83.88,83.848,9.35328464]
[1770727730322,3.72486443,83.87,83.83,9.15420636]
[1770727731831,10.7412,83.867,83.83,9.15420636]
[1770727733633,3.72486443,83.86,83.83,9.15420636]
[1770727734736,10.7423,83.858,83.83,9.15420636]
[1770727735133,3.72486443,83.86,83.808,9.15420636]
[1770727735333,3.72486443,83.85,83.808,9.15420636]
[1770727736437,3.72486443,83.85,83.811,9.15420636]
[1770727736637,10.743,83.853,83.811,9.15420636]
[1770727737334,10.7408,83.87,83.831,9.15420636]
[1770727739238,10.7415,83.864,83.831,9.15420636]
[1770727740440,10.7404,83.873,83.831,9.15420636]
[1770727741333,14.46436443,83.88,83.834,9.15420636]
[1770727741533,4.34769958,83.879,83.834,9.15420636]
[1770727741732,3.72486443,83.86,83.82,9.15420636]
[1770727742236,10.7439,83.846,83.82,9.15420636]
[1770727743336,3.72486443,83.84,83.807,9.15420636]
[1770727744441,3.72486443,83.83,83.794,9.15420636]
[1770727749349,10.7465,83.826,83.794,9.15420636]
[1770727750950,3.72486443,83.82,83.794,9.15420636]
[1770727751344,10.7465,83.826,83.794,9.15420636]
[1770727752147,3.72486443,83.81,83.773,9.15420636]
[1770727753148,10.7476,83.817,83.773,9.15420636]
[1770727753347,21.4844,83.859,83.781,9.15420636]
[1770727753348,3.72486443,83.84,83.781,9.15420636]
[1770727753743,3.72486443,83.84,83.791,9.15420636]
[1770727754053,3.72486443,83.84,83.793,9.15420636]
[1770727754250,10.7445,83.841,83.793,9.15420636]
[1770727754548,10.7434,83.849,83.798,9.15420636]
[1770727754741,3.72486443,83.86,83.81,3.72486443]
[1770727754939,3.65680708,83.865,83.811,9.15420636]
[1770727755143,3.72486443,83.86,83.811,9.15420636]
[1770727755345,3.72486443,83.86,83.81,3.72486443]
[1770727755346,10.7409,83.869,83.82,3.72486443]
[1770727755552,3.72486443,83.87,83.821,9.15420636]
[1770727755945,3.87130842,83.879,83.821,9.15420636]
[1770727756851,3.87758353,83.87,83.824,9.15420636]
[1770727757849,10.7415,83.865,83.824,9.15420636]
[1770727758148,3.87758353,83.87,83.824,9.15420636]
[1770727758749,10.7423,83.858,83.824,9.15420636]
[1770727758954,3.87758353,83.87,83.808,9.15420636]
[1770727759552,10.7431,83.852,83.811,9.15420636]
[1770727761158,10.7412,83.867,83.82,10.747]
[1770727761454,10.7412,83.867,83.821,9.76540172]
[1770727762556,10.742,83.86,83.821,9.76540172]
[1770727763158,10.7411,83.867,83.821,9.76540172]
[1770727763960,10.7403,83.874,83.824,8.89363067]
[1770727764160,4.11666487,83.874,83.813,8.89363067]
[1770727765763,10.7427,83.855,83.813,8.89363067]
[1770727766253,4.11666487,83.874,83.813,8.89363067]
[1770727766460,4.11666487,83.874,83.821,8.89363067]
[1770727767762,10.7408,83.87,83.823,8.89363067]
[1770727768666,10.7408,83.87,83.825,10.7465]
[1770727768967,10.7408,83.87,83.826,8.89363067]
[1770727771561,10.7408,83.87,83.828,8.89363067]
[1770727773162,3.75924941,83.888,83.828,8.89363067]
[1770727773366,3.75924941,83.9,83.835,8.89363067]
[1770727773569,3.75924941,83.9,83.84,8.89363067]
[1770727774362,10.7375,83.896,83.843,8.89363067]
[1770727774557,3.725086,83.917,83.843,8.89363067]
[1770727774765,3.725086,83.917,83.848,8.89363067]
[1770727774969,3.725086,83.917,83.849,8.89363067]
[1770727775169,3.725086,83.917,83.852,8.89363067]
[1770727775665,3.725086,83.917,83.853,8.89363067]
[1770727775870,10.7353,83.913,83.866,8.89363067]
[1770727776263,10.7332,83.929,83.877,8.89363067]
[1770727777480,3.62339062,83.923,83.879,8.89363067]
[1770727778769,3.60750451,83.921,83.879,8.89363067]
[1770727778971,3.7941175,83.919,83.879,8.89363067]
[1770727783770,3.72211916,83.92,83.881,8.89363067]
[1770727784983,3.72211916,83.93,83.884,8.89363067]
[1770727785372,3.71351018,83.929,83.884,8.89363067]
[1770727785676,10.732,83.938,83.884,8.89363067]
[1770727786072,3.69873078,83.953,83.891,8.89363067]
[1770727786273,7.42084994,83.95,83.891,8.89363067]
[1770727786479,3.6836889,83.949,83.891,8.89363067]
[1770727786882,3.72211916,83.94,83.895,8.89363067]
[1770727787182,3.70595358,83.939,83.895,8.89363067]
[1770727787769,116.08,83.975,83.897,8.89363067]
[1770727787770,3.72211916,83.95,83.897,8.89363067]
[1770727788881,3.72211916,83.95,83.899,8.89363067]
[1770727789679,3.72211916,83.95,83.901,8.89363067]
[1770727790576,3.72211916,83.94,83.901,8.89363067]
[1770727791881,3.64691671,83.939,83.895,10.7374]
[1770727792078,3.72211916,83.93,83.888,9.34313062]
[1770727792272,3.64691671,83.929,83.888,9.34313062]
[1770727794782,3.72211916,83.92,83.888,9.34313062]
[1770727796586,3.64691671,83.929,83.888,9.34313062]
[1770727797682,3.37463432,83.919,83.863,9.34313062]
[1770727797888,3.72211916,83.91,83.863,9.34313062]
[1770727798187,3.37463432,83.919,83.863,9.34313062]
[1770727798384,3.37463432,83.919,83.86,3.72211916]
[1770727798385,3.37463432,83.919,83.875,9.34313062]
[1770727799378,3.37463432,83.919,83.876,10.7399]
[1770727799583,3.72211916,83.94,83.881,9.34313062]
[1770727799791,3.71956236,83.94,83.891,9.34313062]
[1770727800491,3.71956236,83.95,83.901,9.34313062]
[1770727801784,3.71956236,83.95,83.905,9.34313062]
[1770727802281,3.35724076,83.959,83.912,9.34313062]
[1770727802887,95.14,83.982,83.912,9.34313062]
[1770727802888,3.28497528,83.949,83.912,9.34313062]
[1770727803490,3.28497528,83.949,83.899,9.34313062]
[1770727803681,3.27273514,83.948,83.899,20.08003062]
[1770727803883,3.27273514,83.948,83.9,9.34313062]
[1770727804285,10.7332,83.929,83.887,9.34313062]
[1770727804687,3.71956236,83.93,83.887,9.34313062]
[1770727805487,3.27322165,83.939,83.891,9.34313062]
[1770727805693,3.71956236,83.94,83.891,9.34313062]
[1770727806698,3.71956236,83.94,83.899,9.34313062]
[1770727806898,3.71956236,83.95,83.899,9.34313062]
[1770727807086,3.71956236,83.95,83.901,9.34313062]
[1770727807288,10.7286,83.965,83.916,9.34313062]
[1770727807695,3.71956236,83.96,83.916,9.34313062]
[1770727808188,3.71956236,83.95,83.904,9.34313062]
[1770727808389,3.71956236,83.94,83.904,9.34313062]
[1770727809296,3.71956236,83.94,83.905,10.7361]
[1770727810092,3.71956236,83.95,83.908,20.07883062]
[1770727810298,2.22091581,83.969,83.909,9.34313062]
[1770727810497,3.71956236,83.95,83.909,9.34313062]
[1770727812598,14.45006236,83.95,83.909,9.34313062]
[1770727815408,3.71956236,83.95,83.911,9.34313062]
[1770727817000,14.45006236,83.95,83.911,9.34313062]
[1770727818197,3.71956236,83.95,83.911,9.34313062]
[1770727818992,3.71902925,83.95,83.911,9.34313062]
[1770727819595,10.7286,83.965,83.918,9.34313062]
[1770727820598,3.71902925,83.97,83.924,8.69369502]
[1770727821804,10.7282,83.968,83.924,8.69369502]
[1770727822405,10.7282,83.968,83.925,8.65355386]
[1770727823404,3.71902925,83.97,83.927,8.65355386]
[1770727823806,2.24957076,83.983,83.931,8.65355386]
[1770727824210,108.09591196,83.997,83.946,8.65355386]
[1770727824404,11.02273148,84.027,83.946,8.65355386]
[1770727824405,114.58,84.021,83.946,8.65355386]
[1770727824605,3.71902925,84.0,83.951,8.65355386]
[1770727824805,5.9491064,84.0,83.951,8.65355386]
[1770727825204,5.9491064,84.0,83.952,10.7302]
[1770727825503,5.9491064,84.0,83.94,3.71902925]
[1770727825504,3.71902925,84.0,83.953,8.65355386]
[1770727825704,3.71902925,84.01,83.953,8.65355386]
[1770727826907,2.32789895,84.011,83.953,8.65355386]
[1770727826908,3.71902925,84.0,83.953,8.65355386]
[1770727827100,3.71902925,84.0,83.95,3.71902925]
[1770727827101,3.71902925,84.0,83.962,8.65355386]
[1770727828006,3.71902925,83.99,83.95,10.7304]
[1770727829811,3.71902925,83.99,83.95,19.38395386]
[1770727830311,35.79,84.046,83.93,3.71902925]
[1770727830312,3.03229456,84.019,83.96,3.71902925]
[1770727830514,3.03229456,84.019,83.971,8.65355386]
[1770727831812,3.03229456,84.019,83.974,10.7274]
[1770727832313,3.03229456,84.019,83.971,8.65355386]
[1770727832314,3.03229456,84.019,83.977,10.727]
[1770727833107,3.03229456,84.019,83.975,8.65355386]
[1770727834211,3.71902925,83.99,83.956,8.65355386]
[1770727834406,3.11906703,84.009,83.956,8.65355386]
[1770727835113,3.71902925,84.0,83.956,8.65355386]
[1770727835314,3.71902925,83.98,83.937,8.65355386]
[1770727836116,3.71902925,83.98,83.941,19.38515386]
[1770727836502,3.71902925,83.98,83.942,8.65355386]
[1770727837214,3.15900237,83.989,83.942,8.65355386]
[1770727837808,3.15900237,83.989,83.944,8.65355386]
[1770727838520,3.71902925,83.99,83.946,8.65355386]
[1770727838923,3.71902925,84.01,83.964,8.65355386]
[1770727839416,3.71902925,84.02,83.979,8.65355386]
[1770727840612,14.43932925,84.03,83.979,8.65355386]
[1770727841619,14.43932925,84.03,83.981,8.65355386]
[1770727842820,14.43932925,84.03,83.984,8.65355386]
[1770727843007,10.7211,84.024,83.984,8.65355386]
[1770727843211,3.71902925,84.02,83.984,8.65355386]
[1770727844522,10.7219,84.018,83.984,8.65355386]
[1770727845625,3.71902925,84.02,83.984,8.65355386]
[1770727846522,2.84223627,84.029,83.985,8.65355386]
[1770727847220,3.71902925,84.01,83.968,8.65355386]
[1770727849324,6.20494855,84.02,83.968,8.65355386]
[1770727849731,2.35036088,84.009,83.953,8.33481251]
[1770727849924,3.71902925,84.0,83.953,8.33481251]
[1770727851125,3.71902925,84.0,83.96,8.33481251]
[1770727852022,2.35036088,84.009,83.96,8.33481251]
[1770727852422,3.71902925,84.02,83.974,8.33481251]
[1770727853724,3.71902925,84.02,83.976,8.33481251]
[1770727854520,3.71902925,84.02,83.978,8.33481251]
[1770727856018,3.71902925,84.02,83.979,8.33481251]
[1770727857624,2.69965887,84.029,83.979,8.33481251]
[1770727857823,3.71902925,84.02,83.979,8.33481251]
[1770727858529,13.42005887,84.029,83.981,8.33481251]
[1770727859330,2.69965887,84.029,83.988,10.7256]
[1770727859535,3.71902925,84.03,83.989,8.33481251]
[1770727859731,10.7195,84.037,83.989,8.33481251]
[1770727860229,3.71902925,84.03,83.992,8.33481251]
[1770727861037,6.43453986,84.03,83.979,8.33481251]
[1770727861234,2.71551061,84.029,83.979,8.33481251]
[1770727861738,3.71902925,84.02,83.979,8.33481251]
[1770727861939,6.42113815,84.02,83.979,8.33481251]
[1770727862534,3.71902925,84.01,83.967,10.7283]
[1770727862830,3.71902925,84.01,83.954,11.09891983]
[1770727862831,3.71902925,83.99,83.954,8.33481251]
[1770727863341,3.71902925,83.99,83.939,8.33481251]
[1770727863932,3.71902925,83.98,83.939,8.33481251]
[1770727864337,2.71287941,83.989,83.939,8.33481251]
[1770727864338,3.71902925,83.97,83.939,8.33481251]
[1770727864734,3.71902925,83.97,83.924,19.06861251]
[1770727864934,3.71902925,83.97,83.925,8.33481251]
[1770727866740,3.71902925,83.97,83.927,8.33481251]
[1770727869435,2.2868807,84.011,83.941,8.33481251]
[1770727869630,3.71902925,84.01,83.951,8.33481251]
[1770727870031,3.71902925,84.0,83.957,8.33481251]
[1770727870436,2.27482878,84.009,83.957,8.33481251]
[1770727870633,3.71902925,84.01,83.957,8.33481251]
[1770727870832,10.7231,84.009,83.959,8.33481251]
[1770727871143,3.71902925,83.99,83.945,8.33481251]
[1770727872745,3.71902925,83.99,83.946,10.731]
[1770727873644,3.71902925,83.99,83.947,8.33481251]
[1770727874539,3.71902925,83.99,83.949,8.33481251]
[1770727874746,3.71902925,84.0,83.95,3.71902925]
[1770727875049,2.12912881,84.014,83.951,8.33481251]
[1770727875050,3.71902925,84.01,83.951,8.33481251]
[1770727875743,3.71902925,84.01,83.963,10.7287]
[1770727875944,3.71902925,84.01,83.964,8.33481251]
[1770727876346,3.71902925,84.01,83.966,8.33481251]
[1770727877747,3.71902925,84.01,83.97,8.33481251]
[1770727878143,114.18,84.043,83.943,22.21478168]
[1770727878144,3.71902925,84.04,83.99,3.71902925]
[1770727878351,2.08523385,84.042,83.99,3.71902925]
[1770727878352,2.08523385,84.042,84.005,10.7234]
[1770727878549,10.7172,84.055,84.005,10.7234]
[1770727878741,10.7172,84.055,83.991,8.33481251]
[1770727878742,3.71902925,84.05,84.006,8.33481251]
[1770727878939,3.71049762,84.05,84.006,8.33481251]
[1770727879151,3.71049762,84.04,83.998,10.7243]
[1770727879341,35.79,84.08,83.978,8.33481251]
[1770727879342,5.78479238,84.03,83.978,8.33481251]
[1770727879738,3.71049762,84.03,83.978,8.33481251]
[1770727879941,5.76644348,84.02,83.978,8.33481251]
[1770727880451,3.71049762,84.02,83.978,8.33481251]
[1770727881239,3.71049762,84.02,83.981,10.7265]
[1770727882051,3.71049762,84.02,83.985,10.7259]
[1770727882247,3.71049762,84.02,83.986,8.39683135]
[1770727882551,3.71049762,84.02,83.946,135.74]
[1770727882552,3.71049762,84.04,83.991,8.39683135]
[1770727883746,3.71049762,84.04,84.0,10.7241]
[1770727884046,114.3,84.047,84.001,8.39683135]
[1770727884247,3.71049762,84.04,84.001,8.39683135]
[1770727887356,3.71049762,84.04,84.006,10.7232]
[1770727887860,3.71049762,84.04,84.006,19.12003135]
[1770727888455,580.08516212,84.062,83.995,10.7247]
[1770727888456,3.71049762,84.03,83.995,10.7247]
[1770727889359,3.71049762,84.04,83.998,8.39683135]
[1770727890758,3.71049762,84.04,83.998,19.12113135]
[1770727891552,3.71049762,84.04,83.991,10.7252]
[1770727891553,3.71049762,84.03,83.991,10.7252]
[1770727892663,3.71049762,84.03,83.997,10.7244]
[1770727893566,3.71049762,84.02,83.987,10.7256]
[1770727895164,3.71049762,84.03,83.987,10.7256]
[1770727896467,3.71049762,84.03,83.995,8.39683135]
[1770727896666,3.71049762,84.04,83.995,8.39683135]
[1770727896868,114.86,84.045,83.995,8.39683135]
[1770727897363,114.86,84.045,84.007,8.39683135]
[1770727898174,10.7175,84.052,84.007,8.39683135]
[1770727903179,10.7182,84.047,84.007,8.39683135]
[1770727903783,10.7183,84.046,84.007,8.39683135]
[1770727903981,2.48704542,84.059,84.007,8.39683135]
[1770727905683,2.41005809,84.047,83.995,10.7246]
[1770727905983,2.41005317,84.045,83.995,10.7246]
[1770727906180,10.7196,84.036,83.994,8.39683135]
[1770727906385,2.39419843,84.034,83.987,10.7257]
[1770727907284,2.28146602,84.032,83.987,10.7257]
[1770727907686,122.56,84.031,83.987,10.7257]
[1770727907884,122.56,84.031,83.987,19.39817127]
[1770727908387,122.68,84.03,83.987,19.39817127]
[1770727908985,2.424195,84.03,83.987,8.67247127]
[1770727909184,2.424195,84.03,83.948,21.4614]
[1770727909185,2.424195,84.028,83.974,8.67247127]
[1770727910676,10.7228,84.011,83.976,10.7271]
[1770727911688,10.7212,84.023,83.98,10.7266]
[1770727913681,2.424195,84.028,83.98,10.7266]
[1770727915783,2.424195,84.028,83.985,10.7259]
[1770727917186,2.63828303,84.039,83.991,8.19496593]
[1770727917392,124.1,84.038,83.991,8.19496593]
[1770727917584,2.62457393,84.037,83.991,8.19496593]
[1770727918690,2.62457393,84.037,83.993,10.725]
[1770727918891,3.71283987,84.02,83.993,10.725]
[1770727920395,3.71283987,84.03,83.993,8.19496593]
[1770727921598,3.71283987,84.02,83.993,8.19496593]
[1770727922092,3.71283987,84.02,83.981,19.29241533]
[1770727922289,3.71283987,84.01,83.991,10.7252]
[1770727922696,3.71283987,84.01,83.981,8.19496593]
[1770727922889,3.71283987,84.01,83.981,19.29241533]
[1770727923086,3.71283987,84.03,83.984,8.19496593]
[1770727923288,125.14,84.029,83.984,8.19496593]
[1770727924000,125.14,84.029,83.985,10.7259]
[1770727924296,125.14,84.029,83.988,8.19496593]
[1770727924902,125.14,84.029,83.989,8.19496593]
[1770727926102,2.36838943,84.033,83.989,8.19496593]
[1770727926301,3.71283987,84.03,83.989,8.19496593]
[1770727927102,3.71283987,84.02,83.985,8.19496593]
[1770727927504,3.71283987,84.0,83.972,8.19496593]
[1770727927702,3.71283987,84.0,83.946,22.19485208]
[1770727927703,3.71283987,84.0,83.967,11.0974494]
[1770727929309,3.71283987,84.0,83.966,11.0974494]
[1770727929506,3.71283987,84.0,83.966,19.29241533]
[1770727931402,3.71283987,84.0,83.966,8.19496593]
[1770727931799,3.71283987,83.98,83.954,8.19496593]
[1770727932510,3.71283987,83.97,83.946,11.0974494]
[1770727932811,3.71283987,83.96,83.939,19.29241533]
[1770727933415,3.71283987,83.96,83.939,8.19496593]
[1770727934202,3.71283987,83.96,83.934,11.0974494]
[1770727934407,3.71283987,83.96,83.931,11.0974494]
[1770727935308,3.71283987,83.96,83.93,11.0974494]
[1770727936005,3.71283987,83.96,83.927,10.7333]
[1770727936613,106.3,83.982,83.931,8.19496593]
[1770727936919,3.71283987,83.98,83.931,8.19496593]
[1770727937216,3.71283987,83.97,83.931,8.19496593]
[1770727937714,3.71283987,83.97,83.945,10.7311]
[1770727939016,2.24367013,83.987,83.945,10.7311]
[1770727939217,3.71283987,83.97,83.945,10.7311]
[1770727939616,3.71283987,83.98,83.945,10.7311]
[1770727940416,3.71283987,83.97,83.934,10.7325]
[1770727940620,3.71283987,83.96,83.934,10.7325]
[1770727941020,3.71796417,83.96,83.94,10.7317]
[1770727941318,3.71796417,83.97,83.94,10.7317]
[1770727943315,3.71796417,83.97,83.939,10.7318]
[1770727945822,3.71796417,83.97,83.931,8.19496593]
[1770727946616,3.71796417,83.97,83.91,3.71796417]
[1770727946617,2.24970511,83.959,83.918,8.26448272]
[1770727947518,2.24970511,83.959,83.92,8.26448272]
[1770727947915,2.24970511,83.959,83.922,18.99848272]
[1770727948122,3.71796417,83.97,83.923,8.26448272]
[1770727949024,10.7281,83.969,83.923,8.26448272]
[1770727950320,3.71796417,83.97,83.932,8.26448272]
[1770727951312,2.30781213,83.969,83.916,8.26448272]
[1770727951511,3.71796417,83.96,83.916,8.26448272]
[1770727952322,3.71796417,83.96,83.918,18.99898272]
[1770727953424,3.71796417,83.95,83.914,11.0974494]
[1770727953717,2.26823722,83.949,83.907,8.26448272]
[1770727954712,2.26823722,83.949,83.909,10.7356]
[1770727956522,2.26823722,83.949,83.909,19.00008272]
[1770727957424,2.26823722,83.949,83.913,8.26448272]
[1770727958528,3.71796417,83.95,83.913,8.26448272]
[1770727958729,3.71796417,83.95,83.914,18.99958272]
[1770727962638,3.71796417,83.95,83.915,8.26448272]
[1770727963737,3.71796417,83.95,83.926,10.7335]
[1770727965736,3.71796417,83.95,83.915,8.26448272]
[1770727967341,3.71796417,83.94,83.904,8.26448272]
[1770727967532,5.52491137,83.94,83.904,8.26448272]
[1770727969936,3.71796417,83.94,83.904,8.26448272]
[1770727970137,3.71796417,83.94,83.906,7.76791636]
[1770727970337,5.41952307,83.95,83.906,7.76791636]
[1770727971043,3.71796417,83.94,83.906,7.76791636]
[1770727975150,14.44986417,83.94,83.906,7.76791636]
[1770727978252,10.7319,83.94,83.906,7.76791636]
[1770727978848,10.7309,83.947,83.909,7.76791636]
[1770727979157,1.80738093,83.949,83.909,7.76791636]
[1770727979849,10.7316,83.942,83.909,7.76791636]
[1770727981159,1.96235749,83.939,83.898,7.76791636]
[1770727981451,11.05853759,83.977,83.88,3.71796417]
[1770727981452,1.9457826,83.929,83.885,7.76791636]
[1770727982849,1.9457826,83.929,83.89,7.76791636]
[1770727983253,3.71796417,83.94,83.89,7.76791636]
[1770727983658,3.71796417,83.93,83.892,7.76791636]
[1770727985861,1.71021655,83.939,83.892,7.76791636]
[1770727986650,3.72023859,83.93,83.892,7.76791636]
[1770727989166,10.7332,83.929,83.892,7.76791636]
[1770727991262,10.7321,83.938,83.895,7.76791636]
[1770727991668,2.06015944,83.948,83.895,7.76791636]
[1770727991869,2.06015944,83.939,83.895,7.76791636]
[1770727992071,10.7327,83.933,83.895,7.76791636]
[1770727992665,2.06015944,83.939,83.895,7.76791636]
[1770727992867,5.76471961,83.93,83.895,7.76791636]
[1770727998576,3.72023859,83.94,83.895,7.76791636]
[1770727998768,1.7966274,83.939,83.896,7.76791636]
[1770727998973,1.73370445,83.929,83.896,7.76791636]
[1770728002173,10.7333,83.928,83.896,7.76791636]
[1770728002585,1.73370445,83.929,83.896,7.76791636]
[1770728003873,1.72404539,83.926,83.885,7.602481]
[1770728004181,3.7208199,83.92,83.885,7.602481]
[1770728004677,10.7338,83.924,83.885,7.602481]
[1770728009681,10.7346,83.918,83.885,7.602481]
[1770728016389,3.7208199,83.93,83.889,7.602481]
[1770728016590,3.7208199,83.93,83.89,7.602481]
[1770728016886,1.72816707,83.938,83.89,7.602481]
[1770728017084,1.72816707,83.938,83.902,7.602481]
[1770728017389,21.4535,83.98,83.909,7.602481]
[1770728017390,1.76929142,83.949,83.909,7.602481]
[1770728017788,10.7308,83.948,83.91,7.602481]
[1770728020093,3.7208199,83.97,83.913,7.602481]
[1770728020287,3.7208199,83.98,83.923,7.602481]
[1770728020492,3.7208199,83.98,83.931,7.602481]
[1770728021590,10.7268,83.979,83.933,7.602481]
[1770728024692,10.7273,83.975,83.933,7.602481]
[1770728030195,130.2,83.975,83.933,7.602481]
[1770728030791,130.2,83.975,83.94,7.16232851]
[1770728032891,323.33522628,83.982,83.94,7.16232851]
[1770728033190,132.56,83.98,83.94,7.16232851]
[1770728033589,132.56,83.98,83.94,10.88314841]
[1770728033793,132.56,83.98,83.942,7.16232851]
[1770728034193,1.76920502,83.969,83.926,7.16232851]
[1770728035695,10.7282,83.968,83.926,7.16232851]
[1770728036896,5.46886394,83.96,83.926,7.16232851]
[1770728037596,1.74804404,83.96,83.926,7.16232851]
[1770728038794,1.74804404,83.96,83.928,7.16232851]
[1770728039399,3.7208199,83.97,83.931,7.16232851]
[1770728039903,3.7208199,83.97,83.934,7.16232851]
[1770728040601,3.7208199,83.97,83.937,10.7321]